[Event "29th Bosnjaci Open 2025"]
[Site "Bosnjaci"]
[Date "2025.01.04"]
[Round "2.15"]
[White "Tomic, Stjepan"]
[Black "Vucenovic, Damian"]
[Result "1/2-1/2"]
[ECO "D60"]
[WhiteElo "1978"]
[BlackElo "2272"]
[Annotator "TA"]
[PlyCount "134"]
[EventDate "2025.01.04"]
[EventType "swiss"]
[EventCountry "CRO"]
[SourceTitle "playchess.com"]
[Source "ChessBase"]
[SourceQuality "1"]
[TimeControl "5400+30"]

{[%evp 18,134,49,36,53,50,65,0,0,0,37,-12,50,35,35,36,32,-6,-3,1,0,-46,-41,-83,-55,-57,-65,-63,-62,-74,-74,-91,-88,-79,-58,-56,-50,-92,-40,-46,-33,-40,-41,-41,-41,-46,-35,-48,-52,-71,-58,-60,-54,-57,-56,-64,-54,-64,-52,-62,-52,-57,-52,-74,-47,-69,-85,-96,-68,-69,-55,-89,-77,-83,-62,-96,-96,-141,-8,-8,0,0,0,0,0,0,0,0,0,0,147,147,147,147,4595,672,29960,29965,29965,29967,29967,29967,29968,29969,29969,8,8,8,8,8,8,8,8,8,8,8,8,8,8]} 1. d4 {[%emt 0:00:03]} d5 {[%emt 0:00:17]} 2. c4 {[%emt 0:00:09]} e6 {[%emt 0:00:19]} 3. Nc3 {[%emt 0:00:06]} Nf6 {[%emt 0:00:18]} 4. Nf3 {[%emt 0:00:41]} c6 {[%emt 0:00:35]} 5. Bg5 {[%emt 0:00:33]} Be7 {[%emt 0:00:27]} 6. e3 {[%emt 0:00:16]} O-O {[%emt 0:00:40]} 7. Qc2 {[%emt 0:00:21]} Nbd7 {[%emt 0:00:54]} 8. Bd3 {[%emt 0:00:34]} Re8 {[%emt 0:11:52]} 9. O-O {[%emt 0:00:10]} h6 {[%emt 0:02:24]} 10. Bh4 {[%emt 0:00:19]} dxc4 {[%emt 0:03:44]} 11. Bxc4 {[%emt 0:00:15]} b5 {[%emt 0:01:45]} 12. Bb3 {[%emt 0:08:43] White has more active pieces.} Bb7 {[%emt 0:02:11]} 13. Rfd1 {[%emt 0:08:53]} Rc8 {[%emt 0:04:39]} 14. Qe2 {[%emt 0:05:54]} (14. Ne5 $14 {should be considered.}) 14... a5 {[%emt 0:02:54]} (14... b4 $11 15. Bxf6 Nxf6) 15. Rac1 {[%emt 0:03:09]} Qb6 {[%emt 0:17:28]} 16. Bc2 {[%emt 0:06:05]} b4 {[%emt 0:12:32]} 17. Na4 {[%emt 0:04:04]} Qb5 {[%emt 0:00:12]} 18. Qd3 {[%emt 0:00:58]} Qh5 {[%emt 0:08:52]} (18... g5 $5 19. Bg3 $8 Ba6 $11) 19. Bg3 {[%emt 0:13:15]} (19. Bxf6 $11 {deserves consideration.} Nxf6 20. Nb6) 19... c5 $15 {[%emt 0:05:37]} 20. dxc5 {[%emt 0:06:47]} Nxc5 {[%emt 0:00:37]} 21. Nxc5 {[%emt 0:01:36]} Rxc5 {[%emt 0:00:19]} 22. Ba4 {[%emt 0:12:04]} Rd8 {[%emt 0:14:06]} 23. Rxc5 {[%emt 0:06:25]} Qxc5 {[%emt 0:00:31]} 24. Qc2 {[%emt 0:01:10] Rxd8+ would now be deadly.} Rxd1+ {[%emt 0:01:43]} 25. Qxd1 {[%emt 0:00:08]} Ne4 {[%emt 0:01:59]} 26. Bc2 {[%emt 0:02:42]} Bf6 {[%emt 0:00:52]} 27. Qb1 {[%emt 0:03:25]} Qc4 {[%emt 0:03:54]} (27... g5 $17 28. Bd3 (28. Bxe4 $2 {loses.} Bxe4 29. Qd1 Bxb2 $19) 28... g4) 28. Bd3 {[%emt 0:05:31]} Qd5 {[%emt 0:01:22]} 29. Bxe4 {[%emt 0:00:44]} Qxe4 {[%emt 0:00:05]} 30. Qxe4 {[%emt 0:00:03]} Bxe4 {[%emt 0:00:04][%mdl 4096] Endgame. KBB-KBN. This pair of bishops is nice.} 31. Be5 {[%emt 0:01:14]} Bd8 {[%emt 0:02:11]} 32. Kf1 {[%emt 0:02:13]} f6 {[%emt 0:00:04]} 33. Bd4 {[%emt 0:00:37]} e5 {[%emt 0:00:27][%cal Oe4f3]} 34. Bc5 {[%emt 0:00:29]} Kf7 {[%emt 0:00:34]} 35. Nd2 {[%emt 0:00:43]} Bd3+ {[%emt 0:00:16]} 36. Ke1 {[%emt 0:00:05]} g6 {[%emt 0:01:10]} 37. f3 {[%emt 0:00:06]} Ke6 {[%emt 0:00:11]} 38. e4 {[%emt 0:00:29]} f5 {[%emt 0:00:07]} 39. Be3 {[%emt 0:03:19]} f4 {[%emt 0:00:58]} 40. Bc5 {[%emt 0:00:16]} Kd7 {[%emt 0:00:24]} 41. a3 {[%emt 0:01:10]} bxa3 {[%emt 0:00:19]} 42. Bxa3 {[%emt 0:00:30]} Kc6 {[%emt 0:00:22]} 43. Nb3 {[%emt 0:01:17]} Bb6 {[%emt 0:00:54]} 44. g3 {[%emt 0:01:02]} a4 {[%emt 0:00:40]} 45. Nc1 {[%emt 0:00:24]} Bc4 {[%emt 0:00:18] And now ...h5 would win.} 46. gxf4 {[%emt 0:00:26]} exf4 {[%emt 0:00:11] Threatens to win with ...g5.} 47. Ne2 {[%emt 0:00:55]} Bxe2 {[%emt 0:00:49]} (47... g5 $17 {[%cal Og5g4] Strongly threatening ...g4!} 48. Nc3 Bd4) 48. Kxe2 $17 {[%emt 0:00:03] KB-KB} g5 {[%emt 0:00:35]} 49. Kd3 {[%emt 0:01:23]} h5 {[%emt 0:00:18] ...g4 is the strong threat.} 50. h3 {[%emt 0:00:13]} Bd8 {[%emt 0:00:57]} 51. Bb4 {[%emt 0:02:34]} Bf6 {[%emt 0:00:20]} 52. Bc3 {[%emt 0:00:30]} Be7 {[%emt 0:00:36]} 53. Kc4 {[%emt 0:00:19]} a3 {[%emt 0:00:33]} (53... Kd6 $11 {keeps the balance.}) 54. bxa3 $16 {[%emt 0:00:09]} Bxa3 {[%emt 0:00:03]} 55. Bf6 {[%emt 0:00:29]} g4 {[%emt 0:00:11][%mdl 8192]} (55... Bc1 $16) 56. fxg4 {[%emt 0:00:10]} (56. hxg4 $142 hxg4 57. fxg4) 56... hxg4 {[%emt 0:00:50]} 57. hxg4 {[%emt 0:00:09]} Kd6 {[%emt 0:00:44]} 58. g5 {[%emt 0:01:00]} Ke6 {[%emt 0:00:08]} 59. Kd3 $1 {[%emt 0:00:10]} Bc1 {[%emt 0:00:50] [#]} 60. Ke2 $1 {[%emt 0:00:06]} Kf7 {[%emt 0:00:26] [#]} 61. Kf3 $2 {[%emt 0:00:13]} (61. e5 $1 {mates} Be3 62. Kd3 Bc1 63. Ke4 Bd2 64. Kf5 f3 65. e6+ Kf8 66. Bd4) 61... Kg6 $11 {[%emt 0:00:23] The position is equal.} 62. Kg4 {[%emt 0:00:03]} (62. e5 $5 Kf5 $8 63. e6 Kxe6 64. Bc3 $11) 62... Bd2 {[%emt 0:00:30]} 63. Bd8 {[%emt 0:00:34]} Bc1 {[%emt 0:00:21]} 64. e5 {[%emt 0:01:03]} f3 $1 {[%emt 0:01:05]} 65. Kxf3 {[%emt 0:00:37] e6 would kill now.} Kf5 $1 {[%emt 0:00:09]} 66. Bf6 {[%emt 0:01:54]} Bxg5 {[%emt 0:00:05]} 67. Bxg5 {[%emt 0:00:10] White threatens Bf6 and mate.} Kxe5 $1 {[%emt 0:00:03] Blacks defense is rewarded with a draw.   Weighted Error Value: White=0.28 (precise) /Black=0.31.  Loses game:     	---       	Black=1      Mistake:       	White=3     	Black=4      Inaccurate:     	White=6     	Black=3      OK:         	White=10    	Black=14     Best:        	White=6     	Black=1      Strong:       	---       	Black=3} 1/2-1/2

[Event "29th Bosnjaci Open 2025"]
[Site "Bosnjaci"]
[Date "2025.01.04"]
[Round "2.16"]
[White "Gal, Andrej"]
[Black "Baturina, Marin"]
[Result "1-0"]
[ECO "E09"]
[WhiteElo "2256"]
[BlackElo "1976"]
[Annotator "TA"]
[PlyCount "95"]
[EventDate "2025.01.04"]
[EventType "swiss"]
[EventCountry "CRO"]
[SourceTitle "playchess.com"]
[Source "ChessBase"]
[SourceQuality "1"]
[TimeControl "5400+30"]

{[%evp 26,95,17,16,59,56,55,0,67,68,61,2,39,48,52,38,55,58,52,56,137,147,146,125,165,185,183,183,174,187,181,168,244,257,242,242,273,273,254,271,245,218,251,213,365,365,364,364,350,307,406,398,390,350,501,501,684,635,819,822,812,765,1336,1016,1407,1381,2211,1989,1887,1991,29975,29975]} 1. d4 {[%emt 0:21:25]} d5 {[%emt 0:00:15]} 2. c4 {[%emt 0:00:08]} c6 {[%emt 0:00:39]} 3. Nf3 {[%emt 0:00:24]} Nf6 {[%emt 0:00:12]} 4. Qc2 {[%emt 0:00:41]} e6 {[%emt 0:00:37]} 5. g3 {[%emt 0:01:19]} Be7 {[%emt 0:05:49]} 6. Bg2 {[%emt 0:01:00]} Nbd7 {[%emt 0:00:31]} 7. O-O {[%emt 0:02:32]} O-O {[%emt 0:01:48]} 8. b3 {[%emt 0:04:34]} b6 {[%emt 0:04:23]} 9. Bb2 {[%emt 0:01:39]} Bb7 {[%emt 0:00:57]} 10. Nc3 {[%emt 0:01:23]} Rc8 {[%emt 0:08:08]} 11. e4 {[%emt 0:01:29]} Nxe4 {[%emt 0:06:58]} 12. Nxe4 {[%emt 0:00:09]} dxe4 {[%emt 0:00:05]} 13. Qxe4 {[%emt 0:00:42]} Rc7 {[%emt 0:01:43]} 14. Rad1 {[%emt 0:16:52]} Bf6 {[%emt 0:07:15]} 15. Qe2 {[%emt 0:05:14]} Qa8 {[%emt 0:03:18]} 16. Bc1 {[%emt 0:10:59]} (16. Nd2 $14) 16... Re8 {[%emt 0:16:32]} ({Black should try} 16... c5 $11) 17. Bf4 $14 {[%emt 0:04:27]} Rcc8 {[%emt 0:04:22]} 18. b4 {[%emt 0:01:39] White is more active.} (18. c5 $14) 18... a5 {[%emt 0:07:56]} 19. a3 $36 {[%emt 0:02:36][%mdl 2048] Black is under pressure.} Nf8 {[%emt 0:00:59]} 20. Ne5 {[%emt 0:03:59]} Bxe5 {[%emt 0:04:19]} ({Much worse is} 20... c5 $6 21. Bxb7 Qxb7 22. dxc5 axb4 23. axb4 $16 (23. c6 Qa8 $14)) 21. Bxe5 {[%emt 0:00:40]} Ng6 {[%emt 0:00:34] Black is weak on the dark squares} 22. Rfe1 {[%emt 0:01:33]} c5 {[%emt 0:02:23] White leaves nothing to chance now.} (22... axb4 $14 23. axb4 Nxe5) 23. Bxb7 $16 {[%emt 0:00:31]} Qxb7 {[%emt 0:00:02]} 24. dxc5 {[%emt 0:00:27]} Nxe5 {[%emt 0:04:10]} 25. Qxe5 {[%emt 0:00:20]} axb4 {[%emt 0:00:10]} 26. axb4 {[%emt 0:00:13]} bxc5 {[%emt 0:00:10] [#]} 27. b5 {[%emt 0:00:45]} ({Stronger than} 27. bxc5 Qa7 $11) 27... Qc7 {[%emt 0:04:46]} 28. Qe4 {[%emt 0:03:22]} Red8 {[%emt 0:01:38]} (28... g6 $142 29. Rd3 Rcd8) 29. Rxd8+ $18 {[%emt 0:00:49]} Rxd8 {[%emt 0:00:04][%mdl 4096] Endgame. KQR-KQR} 30. Ra1 {[%emt 0:00:35]} Qb8 {[%emt 0:02:49]} 31. Qc6 {[%emt 0:03:48]} Rc8 {[%emt 0:02:33] Dodges b6} 32. Qd7 {[%emt 0:00:33][%cal Ob5b6] [#] b6! is the strong threat.} Rf8 {[%emt 0:02:08][%cal Bc8f8,Bf8b8,Bb8b7][%mdl 32]} 33. Rd1 {[%emt 0:01:59]} g6 {[%emt 0:03:21]} 34. Qd6 {[%emt 0:02:22]} Qxd6 {[%emt 0:03:22]} (34... Rc8 {keeps fighting.} 35. Qxb8 Rxb8) 35. Rxd6 {[%emt 0:00:03] KR-KR} Rb8 {[%emt 0:00:05]} 36. Rc6 {[%emt 0:00:19]} Kf8 {[%emt 0:00:14]} 37. Rxc5 {[%emt 0:00:04]} Rb7 {[%emt 0:00:05]} 38. Kg2 {[%emt 0:00:49]} Ke7 {[%emt 0:00:20]} 39. Kf3 {[%emt 0:00:55]} f5 {[%emt 0:03:01]} (39... Ra7 $142 40. Ke4 Kd6 41. Rc6+ Ke7) 40. Ke3 {[%emt 0:01:01]} Kf6 {[%emt 0:00:36]} 41. Rc6 {[%emt 0:00:10]} g5 {[%emt 0:00:28]} 42. b6 {[%emt 0:00:51]} Ke7 {[%emt 0:00:38]} 43. c5 {[%emt 0:00:13]} Rd7 {[%emt 0:00:41]} 44. Rc8 {[%emt 0:01:50] c6 would now be deadly.} Rb7 {[%emt 0:00:32]} 45. Kd4 {[%emt 0:00:46]} Kd7 {[%emt 0:00:39]} 46. Ra8 {[%emt 0:02:00] Black must now prevent Ra7.} Kc6 {[%emt 0:00:41]} 47. Ra7 {[%emt 0:00:15] And now Rxb7 would win.} Rxa7 {[%emt 0:00:31]} 48. bxa7 {[%emt 0:00:02] Weighted Error Value: White=0.09 (flawless) /Black=0.57.  Mistake:       	White=2     	Black=5      Inaccurate:     	---       	Black=4      OK:         	White=14    	Black=11     Best:        	White=2     	---} 1-0

[Event "29th Bosnjaci Open 2025"]
[Site "Bosnjaci"]
[Date "2025.01.04"]
[Round "2.17"]
[White "Ilijas, Dejan"]
[Black "Glavas, Dragan"]
[Result "0-1"]
[ECO "C00"]
[WhiteElo "1974"]
[BlackElo "2251"]
[Annotator "TA"]
[PlyCount "64"]
[EventDate "2025.01.04"]
[EventType "swiss"]
[EventCountry "CRO"]
[SourceTitle "playchess.com"]
[Source "ChessBase"]
[SourceQuality "1"]
[TimeControl "5400+30"]

{[%evp 9,64,-78,-72,-67,-67,-58,-57,-63,-64,-71,-49,-49,-43,-57,-46,-53,-47,-68,-70,-60,-62,-122,-51,-49,-55,-86,-85,-86,-90,-91,-85,-90,-76,-137,-134,-128,-124,-123,-94,-75,0,-99,-96,-102,-100,-277,-277,-279,-269,-248,-139,-306,-311,-1030,-991,-1498,-1427]} 1. e4 {[%emt 0:00:13]} e6 {[%emt 0:00:16][%cal Be7e6,Be6d5,Bd5e4,Be4d3,Bd3d2][%mdl 32]} 2. c4 {[%emt 0:00:11]} d5 {[%emt 0:00:08]} 3. cxd5 {[%emt 0:00:07]} exd5 {[%emt 0:00:15]} 4. Qb3 {[%emt 0:00:10]} dxe4 {[%emt 0:05:53]} 5. Bc4 {[%emt 0:00:07]} Qe7 {[%emt 0:03:41]} 6. Nc3 {[%emt 0:02:10]} Nf6 {[%emt 0:00:31]} 7. d3 {[%emt 0:04:29]} exd3+ {[%emt 0:01:14]} 8. Be3 {[%emt 0:00:03][%cal Og1f3] [#]} d2+ $1 {[%emt 0:12:37]} 9. Kf1 {[%emt 0:01:49]} Nbd7 {[%emt 0:05:25]} 10. Nf3 $1 {[%emt 0:14:56]} Nb6 {[%emt 0:18:40]} 11. Bxb6 $1 {[%emt 0:19:06]} axb6 {[%emt 0:00:18]} 12. Nxd2 {[%emt 0:00:09] Re1 is the strong threat.} Be6 {[%emt 0:01:42]} 13. Re1 {[%emt 0:08:35][%cal Rc4e6]} O-O-O {[%emt 0:00:18]} 14. Bxe6+ {[%emt 0:18:17]} fxe6 {[%emt 0:00:19]} 15. Rxe6 {[%emt 0:06:46] [#]} (15. Nf3 $15) 15... Qb4 {[%emt 0:01:26]} (15... Qd7 $1 $17 {[%cal Rd7d2]} 16. Nf3 Bb4) 16. Re2 {[%emt 0:14:00]} Qxb3 {[%emt 0:04:45]} 17. Nxb3 {[%emt 0:01:27]} Bb4 {[%emt 0:00:17]} 18. g3 {[%emt 0:00:33]} Bxc3 {[%emt 0:11:35]} 19. bxc3 {[%emt 0:00:03]} Rd3 {[%emt 0:00:10]} 20. c4 {[%emt 0:05:24] [#]} Rc3 $1 {[%emt 0:01:38]} 21. Nd2 {[%emt 0:00:43]} (21. Re7 $142) 21... Rd8 $17 {[%emt 0:01:18]} 22. Ne4 {[%emt 0:01:12]} Rxc4 {[%emt 0:03:53] Black is more active.} 23. Nxf6 {[%emt 0:00:58]} gxf6 {[%emt 0:00:08][%mdl 4096] Endgame KRR-KRR. Black is a pawn up.} 24. Kg2 {[%emt 0:00:00]} c5 {[%emt 0:00:50]} (24... c6 $17) 25. Rhe1 {[%emt 0:00:06]} (25. Rb1 $11 {remains equal.}) 25... Rcd4 {[%emt 0:00:16]} 26. Re7 {[%emt 0:01:12]} R8d7 {[%emt 0:01:34]} 27. R1e6 $2 {[%emt 0:00:17]} (27. R7e6 $17) 27... Rxe7 $19 {[%emt 0:01:25]} 28. Rxe7 {[%emt 0:00:00]} c4 {[%emt 0:00:31]} 29. Kf3 {[%emt 0:01:00]} (29. Rxh7 $2 c3 30. Rh8+ Kc7 31. Rh7+ Rd7 $19 (31... Kc6 $2 32. Rh8 $19)) 29... h5 {[%emt 0:05:39]} ({Better is} 29... b5 $19 {aiming for ...Rd3+.} 30. a3 h5) 30. Re6 $2 {[%emt 0:00:41]} (30. a4 $17) 30... b5 {[%emt 0:03:04]} 31. Rxf6 $2 {[%emt 0:00:06]} (31. a3 Kc7 32. Re3) 31... c3 {[%emt 0:00:30]} 32. Rf5 {[%emt 0:01:07]} Rc4 {[%emt 0:00:13]} 0-1

[Event "29th Bosnjaci Open 2025"]
[Site "Bosnjaci"]
[Date "2025.01.04"]
[Round "2.18"]
[White "Ekmescic, Tarik"]
[Black "Jusup, Matej"]
[Result "1-0"]
[ECO "B23"]
[WhiteElo "1967"]
[BlackElo "2238"]
[Annotator "TA"]
[PlyCount "57"]
[EventDate "2025.01.04"]
[EventType "swiss"]
[EventCountry "CRO"]
[SourceTitle "playchess.com"]
[Source "ChessBase"]
[SourceQuality "1"]
[TimeControl "5400+30"]

{[%evp 9,57,0,0,0,4,0,0,0,0,-8,0,0,0,-27,-20,-11,-8,-2,63,0,0,-12,25,20,128,134,300,181,182,109,112,113,107,67,337,358,1567,1561,1447,1418,29986,29987,29995,1147,29989,1190,1640,1641,29993,6419]} 1. e4 {[%emt 0:01:45]} c5 {[%emt 0:00:05]} 2. Nc3 {[%emt 0:00:04]} d6 {[%emt 0:00:05]} 3. d4 {[%emt 0:00:03]} cxd4 {[%emt 0:00:05]} 4. Qxd4 {[%emt 0:00:04]} a6 {[%emt 0:03:02]} 5. b3 {[%emt 0:05:13]} Nc6 {[%emt 0:01:10]} 6. Qd2 {[%emt 0:00:06]} Nf6 {[%emt 0:01:49]} 7. Bb2 {[%emt 0:00:24]} e6 {[%emt 0:00:45]} 8. O-O-O {[%emt 0:04:24] The position is equal.} Be7 {[%emt 0:00:35]} 9. f4 {[%emt 0:07:14]} O-O {[%emt 0:03:15]} 10. Nf3 {[%emt 0:09:24][%cal Og2g4]} Qc7 {[%emt 0:08:20]} 11. Bd3 {[%emt 0:12:46][%cal Og2g4]} Rd8 {[%emt 0:13:05]} 12. g4 {[%emt 0:06:33]} d5 $1 {[%emt 0:02:39]} 13. exd5 {[%emt 0:08:35] [#]} Bd6 {[%emt 0:28:02]} 14. Ne2 {[%emt 0:18:28]} (14. dxc6 $2 Bxf4 15. Rhg1 (15. Bxh7+ $2 Nxh7 16. Ne4 Rxd2 $19) 15... Rxd3 (15... Bxd2+ $2 16. Rxd2 bxc6 17. g5 $19) 16. cxd3 Bxd2+ 17. Nxd2 Nd5 $19 (17... bxc6 $2 18. Rdf1 $19) (17... Qxh2 $2 18. g5 $19) (17... Qxc6 $2 18. Kb1 $19)) ({Better is} 14. Kb1 $14 Bxf4 15. Qf2 exd5 16. Qh4 Bxg4 (16... Nxg4 $2 17. Qxh7+ Kf8 18. Ba3+ $18) 17. Bxh7+ Nxh7 18. Qxg4) 14... Nxd5 $11 {[%emt 0:00:26]} 15. f5 {[%emt 0:04:28]} Bc5 {[%emt 0:05:34] Hoping for ...Be3.} 16. Kb1 $1 {[%emt 0:04:33][%cal Of5f6] aiming for f6!} Be3 {[%emt 0:03:17]} (16... exf5 $11 17. gxf5 Bb6 (17... Be3 18. Qe1 $16)) 17. Qe1 $16 {[%emt 0:00:08]} Nce7 $2 {[%emt 0:20:08]} (17... exf5 $16 {keeps fighting.} 18. gxf5 Bb6) 18. Ned4 {[%emt 0:06:15] Strongly threatening fxe6.} e5 {[%emt 0:01:07] [#]} 19. Ne2 {[%emt 0:00:16]} (19. Nxe5 $1 $18 {Ndf3 would now be deadly.} Bf4 (19... Qxe5 $2 20. Ne6 $18) 20. Nxf7 Kxf7 21. Qe4) 19... f6 {[%emt 0:02:03]} 20. Nc3 {[%emt 0:02:09]} (20. c4 Nf4 21. Nxf4 Bxf4 $11) 20... Nxc3+ {[%emt 0:00:22]} 21. Bxc3 {[%emt 0:00:34]} Bc5 $2 {[%emt 0:03:34][%mdl 8192]} (21... Bf4 $14) 22. Bc4+ {[%emt 0:02:04]} Kh8 $2 {[%emt 0:00:14]} (22... Kf8 23. Rxd8+ Qxd8) 23. Rxd8+ $18 {[%emt 0:00:13]} Qxd8 {[%emt 0:00:01] [#]} 24. Nxe5 $1 {[%emt 0:00:13][%mdl 512]} fxe5 {[%emt 0:01:12]} (24... Qc7 25. Nf7+) 25. Qxe5 {[%emt 0:00:03][%csl Gc3][%cal Re5g7]} Qf8 {[%emt 0:00:27]} 26. Qxc5 {[%emt 0:00:10]} (26. f6 $142 Qf7 27. Bxf7 h6 28. fxg7+ (28. fxe7 Bd4 29. e8=Q+ Kh7 30. Qg8#) 28... Kh7 29. g8=B+ Nxg8 30. Qh8#) 26... b5 {[%emt 0:00:07]} 27. Bd5 {[%emt 0:00:22]} (27. f6 $142 gxf6 28. Qg5 bxc4 29. Bxf6+ Qxf6 30. Qxf6+ Kg8 31. Rf1 (31. Qxe7 Bb7 32. Rf1 Bd5 33. Qg5+ Kh8 34. Qe5+ Kg8 35. Qxd5+ Kh8 36. Qxa8+ Kg7 37. Qf8+ Kg6 38. Qf6#) 31... Bxg4 32. Qf7+ (32. Qxe7 Bh5 33. Qe6+ Kh8 34. Qe5+ Kg8 35. Qxh5 Kh8 36. Rg1 Rg8 37. Qe5+ Rg7 38. Qxg7#) 32... Kh8 33. Qxe7) 27... Bxf5 {[%emt 0:01:19] Black is weak on the dark squares} 28. Bxa8 {[%emt 0:00:36]} Qxa8 {[%emt 0:00:07]} 29. Re1 {[%emt 0:00:12] Weighted Error Value: White=0.27 (precise) /Black=0.89.  Loses game:     	---       	Black=2      Mistake:       	White=2     	Black=3      Inaccurate:     	White=2     	Black=1      OK:         	White=5     	Black=8      Best:        	White=2     	Black=2      Strong:       	White=1     	Black=1} (29. Qxe7 $142 Bxc2+ 30. Kb2 Qg8 31. Rf1 (31. Kxc2 h6 32. Rf1 b4 33. Qxb4 Qh7+ 34. Kc1 Qg6 35. Qf8+ Kh7 36. Rf7 Qg5+ 37. Kb2 h5 38. Rxg7+ Kh6 39. Qh8#) 31... Bf5 32. Rxf5 (32. gxf5 b4 33. Be5 h6 34. Rg1 h5 35. Rxg7 Qxb3+ 36. axb3 a5 37. Rg6#) 32... h6 33. Rf8 Kh7 34. Rxg8 Kxg8 35. Qxg7#) 1-0

[Event "29th Bosnjaci Open 2025"]
[Site "Bosnjaci"]
[Date "2025.01.04"]
[Round "2.19"]
[White "Sipic, Hrvoje"]
[Black "Topalic, Fran"]
[Result "0-1"]
[ECO "B12"]
[WhiteElo "2213"]
[BlackElo "1968"]
[Annotator "TA"]
[PlyCount "74"]
[EventDate "2025.01.04"]
[EventType "swiss"]
[EventCountry "CRO"]
[SourceTitle "playchess.com"]
[Source "ChessBase"]
[SourceQuality "1"]
[TimeControl "5400+30"]

{[%evp 9,74,6,11,6,12,18,5,0,16,17,53,57,66,57,43,43,54,35,47,49,66,58,90,93,114,116,122,-39,-6,-137,-133,-114,595,604,605,589,544,211,210,211,202,212,234,257,216,247,260,249,234,0,59,-8,-32,-24,-8,-286,-288,-1128,-1064,-2363,-2477,-3034,-2176,-29995,-29996,-29996,-29997]} 1. e4 {[%emt 0:00:17]} c6 {[%emt 0:00:05]} 2. d4 {[%emt 0:00:13]} d5 {[%emt 0:00:05]} 3. e5 {[%emt 0:00:34]} c5 {[%emt 0:00:05]} 4. dxc5 {[%emt 0:01:32]} e6 {[%emt 0:00:06]} 5. Be3 {[%emt 0:02:14]} Nd7 {[%emt 0:00:11][%csl LRc5,LRe5]} 6. Nf3 {[%emt 0:01:01]} Bxc5 {[%emt 0:03:23]} 7. Bxc5 {[%emt 0:01:20]} Nxc5 {[%emt 0:00:06]} 8. Qd4 {[%emt 0:02:57]} Nd7 {[%emt 0:01:36]} 9. Qg4 {[%emt 0:04:30]} g6 {[%emt 0:02:25]} 10. Nc3 {[%emt 0:04:42]} a6 {[%emt 0:00:55] Dodges Nb5} 11. O-O-O {[%emt 0:07:44]} Ne7 {[%emt 0:05:39]} 12. Bd3 {[%emt 0:06:46]} Nc6 {[%emt 0:01:24]} 13. Rhe1 {[%emt 0:04:00]} Nc5 {[%emt 0:03:28]} 14. h4 {[%emt 0:02:12]} b5 {[%emt 0:06:54][%cal Bb7b5,Bb5b4][%mdl 32]} 15. h5 {[%emt 0:06:19][%cal Rh5g6]} b4 {[%emt 0:00:41]} 16. Ne2 {[%emt 0:14:17][%cal Bc3e2,Be2f4,Bf4d3][%mdl 32]} Qa5 {[%emt 0:01:11]} 17. hxg6 {[%emt 0:01:24]} (17. Kb1 {with more complications.} Bd7 18. Nc1 O-O-O 19. Nb3) 17... hxg6 {[%emt 0:11:42] [#]} 18. Bxg6 $2 {[%emt 0:09:51]} Qxa2 {[%emt 0:04:14][%cal Oc8d7]} (18... Bd7 $5) 19. Bxf7+ {[%emt 0:02:49]} Kxf7 $17 {[%emt 0:15:51][%cal Be8f7,Bf7e7,Be7d8,Bd8c7,Bc7b6][%mdl 32]} 20. Nf4 {[%emt 0:05:21] [#]} Bb7 $2 {[%emt 0:13:35][%mdl 8192]} (20... Ne7 $1 $17 {and life is bright. ...Qa1+ would now be deadly.} 21. Nh5 Nf5 22. Ng5+ Kf8 23. Qxb4 Rxh5 24. Qxc5+ Ne7) 21. Qg6+ $18 {[%emt 0:02:24]} Ke7 {[%emt 0:00:05]} 22. Qg7+ {[%emt 0:09:20]} Kd8 {[%emt 0:00:08]} 23. Qxh8+ $2 {[%emt 0:02:03]} (23. Ng5 Bc8 (23... Qa1+ $2 24. Kd2 $18) 24. Qxh8+ Kc7 25. Qh7+ Kb6 26. Nd3) 23... Kc7 {[%emt 0:00:04]} 24. Qh7+ {[%emt 0:00:36]} Kb6 {[%emt 0:00:07] [#]} 25. Nd3 $1 {[%emt 0:03:50]} Ne4 {[%emt 0:02:19]} 26. Rxe4 $1 {[%emt 0:00:00]} dxe4 {[%emt 0:00:04]} 27. Qxe4 {[%emt 0:00:00] And now Qe3+ would win.} Rd8 {[%emt 0:00:17][%cal Oc6d4]} 28. Qe3+ {[%emt 0:00:07]} (28. Nxb4 $2 Qa1#) 28... Kc7 {[%emt 0:00:33]} 29. Qc5 $2 {[%emt 0:03:03]} ({White must play} 29. Nd2 $18) 29... a5 {[%emt 0:02:10]} (29... Rd5 $1 $11 30. Qf8 Qa1+ 31. Kd2 Qxb2 32. Qd6+ Kb6 33. Qc5+ (33. Qxe6 Qc3+ 34. Ke3 Qc4 $15) 33... Rxc5 34. Nxb2 Ka7) 30. Kd2 {[%emt 0:01:22]} (30. Nd2 $1 $14 Qa1+ 31. Nb1) 30... Rd5 $1 $11 {[%emt 0:00:57]} 31. Qf8 {[%emt 0:00:25]} Ba6 {[%emt 0:07:56] Dancing on a razor blade.} 32. Qf7+ $2 {[%emt 0:00:39][%mdl 8192]} (32. Ke3 $1 $11) 32... Rd7 $19 {[%emt 0:00:08]} 33. Qg6 $2 {[%emt 0:00:55]} (33. Qf8 b3 (33... Qxb2 $2 {perishes.} 34. Qd6+ Rxd6 35. exd6+ Kxd6 36. Nxb2 $18) (33... Bxd3 $2 34. Ke3 $19) 34. Qc5 (34. Qa3 $2 bxc2 35. Qxa2 Rxd3+ 36. Kxc2 Nb4+ 37. Kc1 Nxa2+ 38. Kc2 Nb4+ 39. Kc1 Rxd1+ 40. Kxd1 Nd3 $19) 34... bxc2 (34... Qxb2 $2 35. Qd6+ Rxd6 36. exd6+ Kxd6 37. Nxb2 $18) 35. Kxc2 Qa4+ (35... Bxd3+ 36. Rxd3 Rxd3 37. Kxd3 $16) 36. b3 Bxd3+ 37. Kb2 (37. Rxd3 $2 Qe4 $19)) 33... Qxb2 {[%emt 0:01:45]} 34. Nfe1 {[%emt 0:01:24]} Nxe5 {[%emt 0:07:13]} 35. Qxe6 {[%emt 0:01:10]} Bxd3 {[%emt 0:00:43]} 36. Nxd3 {[%emt 0:00:34]} Rxd3+ {[%emt 0:00:12]} 37. Ke1 {[%emt 0:00:07]} Qc3+ {[%emt 0:00:14]} ({Inferior is} 37... Qxc2 38. Qxe5+ Kb6 39. Qb8+ Ka6 40. Qa8+ Kb6 (40... Kb5 41. Qb7+ Kc4 42. Qa6+ Kc3 43. Ra1 $11) 41. Qb8+ Ka6 42. Qa8+ Kb5 43. Qb7+ Kc4 44. Qa6+ (44. Rxd3 $2 Qxd3 45. f4 Qe3+ 46. Kd1 a4 $19) 44... Kc3 45. Ra1 $15 (45. Rxd3+ $2 Qxd3 46. Qc6+ Kb2 $19) (45. Qf6+ $2 Kb3 $19)) 0-1